bitfinex/quotes_SOLUSD_20251226
["timestamp","ask_amount","ask_price","bid_price","bid_amount"]
[1766726875937,3.44882029,122.69,122.67,0.2]
[1766726876428,13.88649325,122.72,122.69,0.69]
[1766726876628,13.88649325,122.72,122.69,4.13882029]
[1766726876836,12.49204485,122.73,122.71,3.44882029]
[1766726877137,3.44882029,122.74,122.71,3.44882029]
[1766726877510,3.44882029,122.74,122.7,4.13882029]
[1766726882937,3.44882029,122.73,122.7,0.69]
[1766726883141,3.44882029,122.73,122.7,4.13882029]
[1766726885240,3.44882029,122.73,122.7,3.44882029]
[1766726885438,3.44882029,122.73,122.71,0.69]
[1766726893838,3.44882029,122.73,122.69,11.59902983]
[1766726894336,3.44882029,122.73,122.7,0.71]
[1766726903243,11.59693535,122.73,122.7,0.71]
[1766726903445,8.14811506,122.73,122.7,0.71]
[1766726903757,11.59615369,122.74,122.7,4.15882029]
[1766726904356,11.59615369,122.74,122.7,0.71]
[1766726904564,11.59615369,122.74,122.7,4.15882029]
[1766726904935,11.59615369,122.74,122.7,0.71]
[1766726908853,8.1473334,122.74,122.7,0.71]
[1766726909053,11.59615369,122.74,122.7,0.71]
[1766726910277,14.88,122.75,122.71,3.44882029]
[1766726910447,8.35129423,122.77,122.7,8.14989583]
[1766726910448,3.44882029,122.78,122.74,0.71]
[1766726910768,11.59346925,122.78,122.74,0.71]
[1766726910971,11.59346925,122.78,122.75,0.71]
[1766726922870,11.59346925,122.78,122.75,4.15882029]
[1766726923753,11.59346925,122.78,122.75,0.71]
[1766726924479,3.44882029,122.77,122.75,0.71]
[1766726924663,3.44882029,122.76,122.72,0.66]
[1766726924861,3.44882029,122.76,122.73,0.66]
[1766726925075,3.44882029,122.75,122.73,0.66]
[1766726930068,26.47487978,122.76,122.73,0.66]
[1766726932389,3.44882029,122.75,122.7,8.80995925]
[1766726932683,3.44882029,122.74,122.72,0.66]
[1766726933379,23.02605949,122.76,122.72,0.66]
[1766726933685,3.44882029,122.75,122.72,0.66]
[1766726933876,11.59547091,122.75,122.72,0.66]
[1766726935190,3.44882029,122.74,122.72,0.66]
[1766726937994,2.205233,122.74,122.72,0.66]
[1766726941897,2.205233,122.75,122.72,0.66]
[1766726942095,17.085233,122.76,122.73,0.66]
[1766726945290,2.205233,122.76,122.73,0.66]
[1766726945499,119.58,122.78,122.74,0.66]
[1766726945801,17.085233,122.78,122.75,0.66]
[1766726946706,25.22995722,122.78,122.75,0.66]
[1766726951409,18.58179826,122.79,122.75,0.66]
[1766726951587,8.1441253,122.79,122.76,0.66]
[1766726951788,2.205233,122.78,122.76,0.66]
[1766726955327,10.3493583,122.79,122.76,0.66]
[1766726955615,2.205233,122.79,122.76,0.66]
[1766726959817,23.02361733,122.8,122.76,0.66]
[1766726960118,2.205233,122.79,122.76,0.66]
[1766726962018,115.13767296,122.82,122.75,2.205233]
[1766726962223,2.205233,122.81,122.78,0.72]
[1766726962398,2.895233,122.81,122.78,0.72]
[1766726963216,0.69,122.81,122.78,0.72]
[1766726965102,2.895233,122.81,122.78,0.72]
[1766726965518,2.205233,122.82,122.79,0.72]
[1766726967427,8.14063114,122.85,122.79,8.14363468]
[1766726967606,2.895233,122.84,122.81,0.72]
[1766726967799,2.205233,122.83,122.81,0.72]
[1766726968000,2.895233,122.83,122.81,0.72]
[1766726969425,2.895233,122.83,122.8,0.72]
[1766726969925,2.895233,122.82,122.8,0.72]
[1766726970228,2.205233,122.82,122.8,0.72]
[1766726970725,0.69,122.83,122.8,0.72]
[1766726970929,2.205233,122.82,122.8,0.72]
[1766726977229,2.205233,122.83,122.8,0.72]
[1766726977426,2.895233,122.83,122.8,0.72]
[1766726980016,2.205233,122.83,122.8,0.72]
[1766726981328,2.895233,122.83,122.8,0.72]
[1766726981528,2.205233,122.83,122.8,0.72]
[1766726981926,2.895233,122.83,122.8,0.72]
[1766726983212,2.205233,122.83,122.8,0.72]
[1766726983412,2.925233,122.83,122.8,0.72]
[1766726984742,2.205233,122.82,122.8,0.72]
[1766726985731,2.875233,122.82,122.8,0.72]
[1766726990550,0.67,122.82,122.8,0.72]
[1766726993850,2.875233,122.82,122.8,0.72]
[1766726996652,0.67,122.82,122.8,0.72]
[1766726996855,2.875233,122.82,122.8,0.72]
[1766726998062,4.11123227,122.82,122.8,0.72]
[1766727000267,0.67,122.82,122.8,0.72]
[1766727000469,4.11123227,122.82,122.8,0.72]
[1766727001570,0.67,122.82,122.8,0.72]
[1766727001868,4.11123227,122.82,122.8,0.72]
[1766727003445,4.11123227,122.82,122.79,0.71]
[1766727004466,0.67,122.79,122.75,0.71]
[1766727004649,3.44123227,122.77,122.75,0.71]
[1766727004844,4.11123227,122.78,122.75,0.71]
[1766727008480,18.97123227,122.79,122.76,0.71]
[1766727008677,0.67,122.79,122.76,4.15123227]
[1766727009468,18.99123227,122.8,122.77,0.71]
[1766727009849,15.55,122.8,122.77,0.71]
[1766727010170,15.55,122.82,122.78,0.71]
[1766727010354,3.44123227,122.81,122.78,0.71]
[1766727011054,18.99123227,122.82,122.79,0.71]
[1766727016975,3.44123227,122.81,122.79,0.71]
[1766727021477,18.99123227,122.82,122.79,0.71]
[1766727024470,0.69,122.81,122.79,0.71]
[1766727024985,27.1532677,122.82,122.79,0.71]
[1766727026381,0.69,122.84,122.79,3.44123227]
[1766727026580,4.23123227,122.86,122.82,3.44123227]
[1766727026785,4.23123227,122.86,122.83,0.69]
[1766727027671,4.23123227,122.86,122.82,3.44123227]
[1766727027672,0.1,122.86,122.85,0.69]
[1766727027873,0.1,122.87,122.85,0.69]
[1766727031965,0.79,122.87,122.85,0.69]
[1766727032688,0.79,122.87,122.84,3.44123227]
[1766727032885,0.1,122.87,122.84,3.44123227]
[1766727033184,0.1,122.87,122.85,0.69]
[1766727038790,0.1,122.87,122.86,0.69]
[1766727044194,3.54123227,122.87,122.83,0.68]
[1766727044397,4.10123227,122.86,122.83,0.68]
[1766727045798,12.24091572,122.86,122.83,0.68]
[1766727048287,3.44123227,122.85,122.81,8.14241042]
[1766727048476,0.66,122.84,122.81,3.44123227]
[1766727048823,3.44123227,122.83,122.8,0.68]
[1766727049903,4.10123227,122.82,122.78,3.44123227]
[1766727050105,4.10123227,122.82,122.79,0.68]
[1766727052678,8.14000814,122.85,122.79,12.26493611]
[1766727052898,18.96123227,122.84,122.81,0.68]
[1766727055497,0.66,122.83,122.81,0.68]
[1766727060819,14.86,122.84,122.81,0.68]
[1766727060988,140.99891148,122.86,122.83,0.68]
[1766727061192,0.66,122.85,122.83,0.68]
[1766727069516,35.63893022,122.86,122.83,0.68]
[1766727069716,36.29893022,122.86,122.83,0.68]
[1766727070514,0.66,122.84,122.8,11.02497085]
[1766727070713,0.66,122.84,122.8,2.88179298]
[1766727070909,0.66,122.83,122.8,0.68]
[1766727071302,0.66,122.82,122.79,2.88179298]
[1766727071505,0.66,122.82,122.79,0.68]
[1766727071800,0.66,122.82,122.79,2.88179298]
[1766727072420,14.86,122.83,122.8,0.68]
[1766727072722,14.86,122.83,122.81,0.68]
[1766727072899,15.52,122.83,122.81,0.68]
[1766727073525,14.86,122.83,122.81,0.68]
[1766727074023,15.52,122.84,122.81,0.68]
[1766727074922,15.52,122.84,122.82,0.67]
[1766727075808,14.86,122.84,122.82,0.67]
[1766727077124,0.71,122.86,122.83,0.67]
[1766727079518,2.91179298,122.86,122.83,0.67]
[1766727080727,14.96,122.87,122.84,0.67]
[1766727081330,14.96,122.87,122.84,2.20179298]
[1766727081519,14.96,122.87,122.85,0.67]
[1766727082216,2.30179298,122.9,122.87,0.67]
[1766727082419,0.1,122.9,122.87,0.67]
[1766727082613,5.57389772,122.9,122.87,0.67]
[1766727083223,2.30179298,122.9,122.87,0.67]
[1766727083520,0.1,122.9,122.87,0.67]
[1766727083718,0.1,122.9,122.88,0.67]
[1766727084738,3.01179298,122.9,122.87,0.67]
[1766727087221,0.71,122.89,122.86,8.13905807]
[1766727087426,2.20179298,122.89,122.86,0.67]
[1766727088034,2.91179298,122.89,122.86,0.67]
[1766727088926,0.71,122.89,122.86,0.67]
[1766727089126,2.91179298,122.89,122.86,0.67]
[1766727090642,2.20179298,122.88,122.84,25.20221561]
[1766727090942,0.71,122.87,122.85,0.67]
[1766727091329,2.91179298,122.87,122.84,0.67]
[1766727094633,0.71,122.87,122.84,0.67]
[1766727094941,2.91179298,122.87,122.84,0.67]
[1766727097141,2.91179298,122.86,122.82,0.67]
[1766727097952,2.91179298,122.86,122.83,0.67]
[1766727099233,8.84894304,122.87,122.83,0.67]
[1766727099453,2.20179298,122.86,122.83,0.67]
[1766727099954,2.91179298,122.86,122.83,0.67]
[1766727101852,2.20179298,122.86,122.83,0.67]
[1766727102056,8.84825881,122.88,122.84,0.67]
[1766727102244,2.91179298,122.88,122.84,0.67]
[1766727102444,2.20179298,122.87,122.84,0.67]
[1766727103046,2.86179298,122.87,122.84,0.67]
[1766727107058,2.86179298,122.87,122.83,0.67]
[1766727107356,2.86179298,122.86,122.83,0.67]
[1766727107854,2.86179298,122.85,122.82,0.67]
[1766727108562,0.66,122.85,122.82,0.67]
[1766727108980,2.86179298,122.84,122.8,11.01495374]
[1766727109148,2.86179298,122.83,122.8,0.67]
[1766727110463,2.20179298,122.83,122.79,10.34556916]
[1766727110643,2.86179298,122.83,122.8,0.67]
[1766727113065,0.66,122.82,122.8,0.67]
[1766727113659,0.66,122.82,122.79,0.67]
[1766727114448,2.20179298,122.83,122.79,10.34563321]
[1766727114668,2.86179298,122.83,122.8,0.67]
[1766727114975,0.66,122.82,122.79,10.34563321]
[1766727115143,2.20179298,122.83,122.79,10.34563321]
[1766727115344,2.86179298,122.83,122.79,11.01563321]
[1766727116568,0.66,122.82,122.79,8.81384023]
[1766727116749,0.66,122.82,122.79,2.87179298]
[1766727117451,0.66,122.82,122.79,2.20179298]
[1766727117657,0.66,122.82,122.8,0.67]
[1766727118049,0.66,122.82,122.79,11.01568284]
[1766727118359,2.86179298,122.82,122.79,0.67]
[1766727119972,4.10122285,122.82,122.79,0.67]
[1766727120775,4.10122285,122.82,122.78,0.67]
[1766727120776,4.10122285,122.81,122.78,0.67]
[1766727124766,3.44122285,122.85,122.81,0.67]
[1766727124988,0.66,122.84,122.81,4.11122285]
[1766727125153,0.66,122.86,122.82,0.67]
[1766727125354,4.10122285,122.85,122.82,0.67]
[1766727127775,0.66,122.84,122.81,0.67]
[1766727131084,3.44122285,122.85,122.81,0.67]
[1766727131277,4.10122285,122.85,122.81,0.67]
[1766727132581,4.10122285,122.85,122.81,3.44122285]
[1766727132881,4.10122285,122.85,122.82,0.67]
[1766727138788,3.44122285,122.85,122.81,3.44122285]
[1766727139095,0.69,122.84,122.81,4.13122285]
[1766727139393,0.69,122.84,122.81,0.69]
[1766727139880,3.44122285,122.84,122.81,0.69]
[1766727140085,4.13122285,122.83,122.8,0.69]
[1766727142265,0.69,122.82,122.79,15.55]
[1766727142772,0.69,122.82,122.8,0.69]
[1766727143173,4.13122285,122.83,122.8,0.69]
[1766727145990,0.69,122.83,122.8,0.69]
[1766727152799,0.69,122.83,122.8,4.13122285]
[1766727152989,0.69,122.83,122.81,0.69]
[1766727153181,0.69,122.85,122.82,0.69]
[1766727154777,4.13122285,122.85,122.82,0.69]
[1766727160704,0.69,122.84,122.82,0.69]
[1766727161199,0.69,122.82,122.78,8.83423419]
[1766727161379,4.13122285,122.82,122.78,8.83423419]
[1766727161585,4.13122285,122.82,122.79,0.69]
[1766727161781,4.13122285,122.8,122.76,18.30122285]
[1766727161981,0.69,122.79,122.76,0.69]
[1766727162287,4.13122285,122.79,122.76,0.69]
[1766727163100,0.69,122.79,122.76,8.83594918]
[1766727163302,4.13122285,122.79,122.76,8.83594918]
[1766727164103,4.13122285,122.79,122.76,0.69]
[1766727164486,0.68,122.78,122.75,4.13122285]
[1766727164680,0.68,122.78,122.75,0.69]
[1766727165702,4.12122285,122.78,122.75,0.69]
[1766727167396,0.68,122.78,122.75,8.83657595]
[1766727172498,0.68,122.78,122.75,12.2777988]
[1766727172903,0.68,122.78,122.75,11.5877988]
[1766727173412,0.68,122.78,122.75,12.2777988]
[1766727178812,0.68,122.78,122.75,11.5877988]
[1766727180800,0.68,122.78,122.75,12.2777988]
[1766727180999,0.68,122.77,122.74,4.13122285]
[1766727182096,0.68,122.77,122.74,2.89375351]
[1766727182720,0.68,122.78,122.75,2.89375351]
[1766727182921,0.68,122.8,122.76,2.89375351]
[1766727183104,0.68,122.8,122.77,2.89375351]
[1766727184715,0.68,122.8,122.77,11.0390387]
[1766727184916,0.68,122.81,122.79,0.69]
[1766727185506,0.68,122.81,122.78,2.89375351]
[1766727186323,0.68,122.81,122.78,11.03836442]
[1766727190831,0.68,122.81,122.78,0.69]
[1766727191035,0.68,122.8,122.76,8.14569505]
[1766727191211,0.68,122.8,122.77,2.89375351]
[1766727191630,0.68,122.8,122.77,0.69]
[1766727191837,0.68,122.8,122.77,2.89375351]
[1766727192041,0.68,122.8,122.77,2.20375351]
[1766727192729,0.68,122.8,122.77,10.34894749]
[1766727192933,0.68,122.8,122.78,2.20375351]
[1766727194316,0.68,122.81,122.78,2.86375351]
[1766727195236,0.68,122.81,122.78,0.66]
[1766727195434,0.68,122.81,122.78,2.86375351]
[1766727195839,0.68,122.8,122.77,2.86375351]
[1766727196036,0.68,122.8,122.77,0.66]
[1766727198425,0.68,122.8,122.77,2.86375351]
[1766727199135,0.68,122.8,122.76,8.14571893]
[1766727199341,0.68,122.8,122.77,2.20375351]
[1766727201329,0.68,122.8,122.77,2.86375351]
[1766727201632,8.82221847,122.82,122.79,0.66]
[1766727201816,0.68,122.81,122.79,0.66]
[1766727203044,0.68,122.81,122.78,2.20375351]
[1766727203245,0.68,122.81,122.78,2.86375351]
[1766727210131,0.68,122.85,122.81,0.66]
[1766727210334,0.68,122.85,122.81,2.86375351]
[1766727211125,0.68,122.84,122.81,2.86375351]
[1766727211329,0.68,122.84,122.82,2.86375351]
[1766727211630,0.68,122.85,122.82,2.86375351]
[1766727212727,0.68,122.85,122.82,2.20375351]
[1766727213149,0.68,122.85,122.81,11.00638292]
[1766727215450,0.68,122.85,122.82,2.20375351]
[1766727217153,0.68,122.85,122.82,2.86375351]
[1766727218748,0.68,122.85,122.82,2.20375351]
[1766727221829,0.68,122.85,122.82,2.86375351]
[1766727222035,0.68,122.87,122.84,0.66]
[1766727222868,0.68,122.87,122.84,2.86375351]
[1766727224852,2.20375351,122.87,122.84,0.66]
[1766727225053,0.72,122.86,122.84,0.66]
[1766727226341,2.20375351,122.87,122.84,0.66]
[1766727226662,2.92375351,122.87,122.84,0.66]
[1766727227134,0.72,122.87,122.84,2.86375351]
[1766727227337,11.15767296,122.88,122.85,0.71]
[1766727227559,11.15767296,122.88,122.85,2.91375351]
[1766727227957,0.72,122.89,122.86,0.71]
[1766727228170,0.82,122.9,122.87,2.91375351]
[1766727239479,0.82,122.9,122.87,0.71]
[1766727239778,0.82,122.9,122.87,2.91375351]
[1766727240878,0.49812481,122.9,122.87,2.20375351]
[1766727241056,0.49812481,122.9,122.87,2.91375351]
[1766727242063,0.49812481,122.9,122.87,4.14625117]
[1766727242454,0.1,122.91,122.88,4.14625117]
[1766727243056,0.82,122.91,122.88,4.14625117]
[1766727243999,0.82,122.91,122.88,0.71]
[1766727244667,4.25625117,122.91,122.88,0.71]
[1766727245077,0.82,122.91,122.88,0.71]
[1766727245465,4.25625117,122.91,122.88,0.71]
[1766727247561,12.39231279,122.91,122.88,0.71]
[1766727248485,8.95606162,122.91,122.88,0.71]
[1766727248673,12.39231279,122.91,122.88,0.71]
[1766727261192,8.95606162,122.91,122.88,0.71]
[1766727261392,12.39231279,122.91,122.88,0.71]
[1766727262695,8.95606162,122.91,122.88,0.71]
[1766727262993,12.39231279,122.91,122.88,0.71]
[1766727266523,4.11625117,122.9,122.88,0.71]
[1766727268791,0.68,122.9,122.88,0.71]
[1766727274487,12.35231279,122.91,122.88,0.71]
[1766727274708,5.4923063,122.9,122.88,0.71]
[1766727276109,3.43625117,122.89,122.84,22.99909983]
[1766727276297,4.11625117,122.87,122.84,0.69]
[1766727276698,0.68,122.87,122.84,3.43625117]
[1766727277590,0.68,122.87,122.85,0.69]
[1766727283818,0.68,122.87,122.85,4.12625117]
[1766727284917,0.68,122.87,122.85,0.69]
[1766727285712,0.72,122.86,122.83,0.68]
[1766727285897,0.72,122.86,122.83,4.11625117]
[1766727290004,11.57495905,122.87,122.83,4.11625117]
[1766727290005,0.72,122.88,122.85,3.43625117]
[1766727290205,0.72,122.88,122.85,4.11625117]
[1766727291026,8.85813216,122.88,122.85,4.11625117]
[1766727291721,12.29438333,122.88,122.85,0.68]
[1766727300824,0.82,122.91,122.88,0.68]
[1766727302131,8.95612643,122.91,122.88,0.68]
[1766727302512,8.95612643,122.91,122.88,2.87901874]
[1766727302830,2.91901874,122.9,122.87,0.68]
[1766727304711,2.41901874,122.9,122.87,0.68]
[1766727305730,8.95612643,122.91,122.88,0.68]
[1766727305909,11.15514517,122.91,122.88,0.68]
[1766727306711,10.43514517,122.91,122.88,0.68]
[1766727307120,0.1,122.91,122.88,2.19901874]
[1766727307332,0.1,122.91,122.9,0.68]
[1766727308416,0.1,122.91,122.9,2.87901874]
[1766727308920,0.1,122.91,122.9,0.68]
[1766727311314,0.1,122.91,122.88,0.68]
[1766727311315,0.82,122.91,122.88,0.68]
[1766727311550,0.82,122.91,122.89,0.68]
[1766727312116,0.82,122.91,122.88,0.68]
[1766727318642,11.15521897,122.91,122.88,0.68]
[1766727318831,0.71,122.9,122.88,0.68]
[1766727319145,0.71,122.9,122.86,8.13913273]
[1766727319146,0.71,122.89,122.86,2.85901874]
[1766727319328,0.71,122.89,122.87,0.66]
[1766727322142,0.81,122.91,122.88,0.66]
[1766727323951,3.00901874,122.91,122.88,0.66]
[1766727326566,0.81,122.91,122.88,0.66]
[1766727328725,0.1,122.91,122.89,0.66]
[1766727329349,0.1,122.91,122.88,0.66]
[1766727329945,0.81,122.91,122.88,0.66]
[1766727330447,3.00901874,122.91,122.88,0.66]
[1766727332434,10.43516269,122.91,122.88,0.66]
[1766727332754,0.71,122.9,122.88,0.66]
[1766727335049,11.04574343,122.9,122.87,0.66]
[1766727336732,8.84672469,122.9,122.87,0.66]
[1766727339459,0.71,122.9,122.87,0.66]
[1766727343157,8.84684267,122.9,122.87,0.66]
[1766727343345,0.68,122.89,122.86,0.69]
[1766727343546,2.87901874,122.89,122.86,0.69]
[1766727345764,0.68,122.89,122.86,0.69]
[1766727346665,15.55,122.9,122.87,0.66]
[1766727350769,0.69,122.89,122.87,0.66]
[1766727352472,8.13739809,122.89,122.86,0.66]
[1766727352673,0.69,122.88,122.86,0.66]
[1766727359479,0.69,122.88,122.85,0.66]
[1766727361080,0.69,122.88,122.85,2.85901874]
[1766727362075,0.69,122.88,122.85,0.66]
[1766727362373,0.69,122.88,122.85,2.19901874]
[1766727362581,0.69,122.88,122.86,0.66]
[1766727364575,11.57481706,122.89,122.86,0.66]
[1766727364782,12.26481706,122.89,122.86,0.66]
[1766727367177,0.69,122.88,122.84,11.57799788]
[1766727368885,0.69,122.86,122.82,18.29741897]
[1766727369079,0.69,122.84,122.8,11.58050055]
[1766727369262,4.12741897,122.82,122.79,0.66]
[1766727369467,0.69,122.82,122.79,0.66]
[1766727370686,0.69,122.82,122.79,4.09741897]
[1766727372785,0.69,122.82,122.8,0.66]
[1766727374469,4.12741897,122.82,122.8,0.66]
[1766727374670,12.26946408,122.82,122.79,0.66]
[1766727375597,3.43741897,122.81,122.79,0.66]
[1766727377182,4.10741897,122.82,122.79,0.66]
[1766727377372,0.67,122.82,122.79,0.66]
[1766727377577,18.96741897,122.83,122.8,0.66]
[1766727377776,27.10887605,122.83,122.8,0.66]
[1766727379102,3.43741897,122.82,122.8,0.66]
[1766727381197,4.10741897,122.82,122.78,11.58186577]
[1766727381404,3.43741897,122.81,122.79,0.66]
[1766727382489,4.10741897,122.81,122.79,0.66]
[1766727383093,4.10741897,122.81,122.78,0.66]
[1766727383476,3.43741897,122.8,122.76,18.29741897]
[1766727383683,4.10741897,122.8,122.77,0.66]
[1766727383905,3.43741897,122.79,122.75,0.2]
[1766727384096,4.10741897,122.77,122.75,0.86]
[1766727384412,3.43741897,122.76,122.75,0.2]
[1766727385287,4.10741897,122.76,122.74,0.2]
[1766727385592,3.43741897,122.75,122.74,0.2]
[1766727390696,12.2534293,122.76,122.74,0.2]
[1766727391707,3.43741897,122.75,122.74,0.2]
[1766727391909,4.10741897,122.75,122.74,0.2]
[1766727392405,12.25405848,122.75,122.73,0.2]
[1766727392714,3.43741897,122.74,122.73,0.2]
[1766727394003,10.43767296,122.78,122.74,0.66]
[1766727394312,4.10741897,122.77,122.74,0.66]
[1766727395411,3.43741897,122.76,122.74,0.66]
[1766727395615,4.10741897,122.76,122.74,0.66]
[1766727396111,12.25344079,122.76,122.73,0.86]
[1766727396717,4.10741897,122.75,122.73,0.86]
[1766727397482,4.10741897,122.75,122.73,0.2]
[1766727397686,3.43741897,122.74,122.73,0.2]
[1766727398098,4.10741897,122.74,122.73,0.2]
[1766727399814,3.43741897,122.74,122.73,0.2]
[1766727400314,4.10741897,122.74,122.73,0.2]
[1766727400609,12.25472221,122.74,122.72,0.2]
[1766727400915,3.43741897,122.73,122.72,0.2]
[1766727401296,12.25472221,122.74,122.72,0.2]
[1766727401522,11.58472221,122.74,122.72,0.2]
[1766727401723,11.58472221,122.74,122.72,0.86]
[1766727401922,12.25472221,122.74,122.72,0.86]
[1766727412042,11.58472221,122.74,122.72,0.86]
[1766727412247,12.24472221,122.74,122.72,0.86]
[1766727413930,0.66,122.73,122.72,0.2]
[1766727415751,0.66,122.74,122.72,0.2]
[1766727416059,4.09741897,122.74,122.72,0.2]
[1766727416930,0.66,122.74,122.72,0.2]
[1766727418063,0.66,122.74,122.72,0.89]
[1766727419061,23.02678566,122.75,122.73,0.69]
[1766727419248,26.46420463,122.75,122.73,0.69]
[1766727419634,27.12420463,122.75,122.73,0.69]
[1766727420760,0.66,122.78,122.74,4.12741897]
[1766727420968,18.97741897,122.78,122.75,0.69]
[1766727421170,15.54,122.78,122.75,0.69]
[1766727421969,23.68464896,122.78,122.75,0.69]
[1766727425765,23.02464896,122.78,122.75,0.69]
[1766727426663,0.66,122.77,122.74,10.35093235]
[1766727427470,0.66,122.77,122.76,2.20365018]
[1766727427637,0.66,122.77,122.75,2.20365018]
[1766727428464,2.86365018,122.79,122.76,0.69]
[1766727430074,10.43767296,122.8,122.76,10.34948595]
[1766727430246,11.09767296,122.8,122.77,0.69]
[1766727431950,11.09767296,122.8,122.77,2.89365018]
[1766727432150,10.43767296,122.8,122.78,0.69]
[1766727433170,21.44479019,122.8,122.76,0.69]
[1766727433368,21.44479019,122.8,122.76,2.20365018]
[1766727433546,21.44479019,122.8,122.77,0.69]
[1766727439453,2.20365018,122.79,122.75,0.67]
[1766727439649,2.20365018,122.78,122.75,0.67]
[1766727439848,0.72,122.77,122.75,0.67]
[1766727440548,0.72,122.77,122.74,2.87365018]
[1766727441365,0.72,122.77,122.74,0.67]
[1766727441651,0.72,122.77,122.74,2.87365018]
[1766727443859,0.72,122.77,122.75,0.67]
[1766727444063,8.86476447,122.78,122.75,0.67]
[1766727450487,0.72,122.78,122.75,0.67]
[1766727452264,8.86480449,122.78,122.75,0.67]
[1766727452465,0.72,122.78,122.75,0.67]
[1766727452666,2.92365018,122.78,122.75,0.67]
[1766727460192,0.72,122.78,122.75,0.67]
[1766727462497,0.66,122.77,122.75,0.67]
[1766727463687,0.66,122.77,122.74,11.06090829]
[1766727465269,2.20365018,122.78,122.75,0.68]
[1766727465474,2.90365018,122.78,122.75,0.68]
[1766727467879,11.04834383,122.78,122.75,0.68]
[1766727469394,8.84469365,122.78,122.75,0.68]
[1766727469580,11.04834383,122.78,122.75,0.68]
[1766727469783,0.7,122.77,122.74,2.20365018]
[1766727469976,0.7,122.77,122.74,1.48365018]
[1766727470180,10.34834383,122.78,122.75,0.68]
[1766727470377,0.7,122.77,122.74,2.16365018]
[1766727470592,8.14553819,122.77,122.72,8.34854304]
[1766727470789,0.7,122.75,122.72,0.88]
[1766727470992,0.7,122.75,122.73,0.68]
[1766727471783,0.7,122.75,122.72,0.2]
[1766727472104,0.7,122.74,122.72,0.2]
[1766727473797,0.7,122.75,122.72,2.40365018]
[1766727474100,0.7,122.77,122.73,2.20365018]
[1766727474304,0.7,122.77,122.74,0.68]
[1766727476810,11.04855259,122.78,122.74,0.68]
[1766727476996,5.4864508,122.77,122.74,0.68]
[1766727477602,6.1864508,122.77,122.74,0.68]
[1766727477908,0.7,122.77,122.74,0.68]
[1766727480388,8.8454443,122.77,122.74,0.68]
[1766727480793,8.1454443,122.77,122.74,0.68]
[1766727481199,11.04909448,122.77,122.74,0.68]
[1766727481588,10.34909448,122.77,122.74,0.68]
[1766727481792,0.7,122.76,122.74,0.68]
[1766727482006,0.7,122.76,122.73,0.68]
[1766727485724,11.04909448,122.77,122.73,0.68]
[1766727485906,12.28985982,122.77,122.73,0.68]
[1766727489699,4.14441552,122.75,122.72,0.88]
[1766727490438,0.7,122.75,122.72,0.88]
[1766727490628,4.14441552,122.75,122.72,0.88]
[1766727492949,12.29120035,122.75,122.72,0.88]
[1766727493455,14.88,122.78,122.73,10.43767296]
[1766727493620,4.95296532,122.83,122.77,3.44441552]
[1766727493823,4.23638937,122.82,122.8,3.44441552]
[1766727494021,0.7,122.83,122.8,3.44441552]
[1766727497431,0.68,122.84,122.81,3.44441552]